fUST/lending_fUST_20250404
["ID","MTS","AMOUNT","RATE_DAILY","PERIOD"]
[357094872,1743726637996,-544.41,0.00016781,2]
[357094873,1743726638005,-724.26,0.00016781,2]
[357094874,1743726638015,-500.0,0.00016781,2]
[357094875,1743726638024,-816.88,0.00016781,2]
[357094876,1743726638034,-762.72,0.00016781,2]
[357094877,1743726638044,-500.0,0.00016781,2]
[357094878,1743726638053,-536.37,0.00016781,2]
[357094879,1743726638062,-500.0,0.00016782,2]
[357094880,1743726638072,-1600.0,0.00016986,2]
[357094881,1743726638082,-553.8,0.00017054,2]
[357094882,1743726638091,-500.0,0.00017054,2]
[357094883,1743726638100,-500.0,0.00017054,2]
[357094884,1743726638110,-544.41,0.00017055,2]
[357094885,1743726638121,-724.26,0.00017055,2]
[357094886,1743726638132,-500.0,0.00017055,2]
[357094887,1743726638143,-816.88,0.00017055,2]
[357094888,1743726638153,-762.72,0.00017055,2]
[357094889,1743726638163,-500.0,0.00017055,2]
[357094890,1743726638173,-536.37,0.00017055,2]
[357094891,1743726638183,-500.0,0.00017056,2]
[357094892,1743726638193,-200.0,0.00017058,2]
[357094893,1743726638202,-4531.79796182,0.000172,2]
[357094894,1743726638214,-4531.79796155,0.000172,2]
[357094895,1743726638224,-553.8,0.00017328,2]
[357094896,1743726638234,-500.0,0.00017328,2]
[357094897,1743726638243,-500.0,0.00017328,2]
[357094898,1743726638253,-544.41,0.00017329,2]
[357094899,1743726638263,-724.26,0.00017329,2]
[357094900,1743726638273,-500.0,0.00017329,2]
[357094901,1743726638283,-816.88,0.00017329,2]
[357094902,1743726638292,-762.72,0.00017329,2]
[357094903,1743726638302,-500.0,0.00017329,2]
[357094904,1743726638312,-536.37,0.00017329,2]
[357094905,1743726638321,-500.0,0.0001733,2]
[357094906,1743726638330,-160.0,0.00017499,2]
[357094907,1743726638340,-35441.56124654,0.000175,4]
[357094908,1743726638350,-2000.0,0.00017534,2]
[357094909,1743726638360,-553.8,0.00017602,2]
[357094910,1743726638369,-563.07,0.00017602,2]
[357094911,1743726638379,-500.0,0.00017602,2]
[357094912,1743726638389,-544.41,0.00017603,2]
[357094913,1743726638399,-724.26,0.00017603,2]
[357094914,1743726638408,-500.0,0.00017603,2]
[357094915,1743726638418,-816.88,0.00017603,2]
[357094916,1743726638428,-762.72,0.00017603,2]
[357094917,1743726638438,-455.19,0.00017603,2]
[357094918,1743726638447,-536.37,0.00017603,2]
[357094919,1743726638457,-500.0,0.00017604,2]
[357094920,1743726638467,-553.8,0.00017876,2]
[357094921,1743726638476,-500.0,0.00017876,2]
[357094922,1743726638486,-544.41,0.00017877,2]
[357094923,1743726638497,-724.26,0.00017877,2]
[357094924,1743726638507,-264.18822673,0.00017877,2]
[357094925,1743726638516,-816.88,0.00017877,2]
[357094926,1743726638525,-762.72,0.00017877,2]
[357094927,1743726638535,-536.37,0.00017877,2]
[357094928,1743726638544,-500.0,0.00017878,2]
[357094929,1743726638554,-204.1,0.00018,2]
[357094930,1743726638564,-204.1,0.00018,2]
[357094931,1743726638573,-4531.79796155,0.00018038,2]
[357094932,1743726638583,-2400.0,0.00018082,2]
[357094933,1743726638593,-553.8,0.0001815,2]
[357094934,1743726638603,-500.0,0.0001815,2]
[357094935,1743726638612,-544.41,0.00018151,2]
[357094936,1743726638622,-724.26,0.00018151,2]
[357094937,1743726638632,-816.88,0.00018151,2]
[357094938,1743726638642,-762.72,0.00018151,2]
[357094939,1743726638651,-536.37,0.00018151,2]
[357094940,1743726638660,-500.0,0.00018152,2]
[357094941,1743726638670,-542.0,0.00018188,2]
[357094942,1743726638680,-2233.0,0.00018188,2]
[357094943,1743726638690,-1551.0,0.00018188,2]
[357094944,1743726638700,-401.0,0.00018188,2]
[357094945,1743726638710,-553.8,0.00018424,2]
[357094946,1743726638720,-500.0,0.00018424,2]
[357094947,1743726638729,-544.41,0.00018425,2]
[357094948,1743726638739,-724.26,0.00018425,2]
[357094949,1743726638748,-816.88,0.00018425,2]
[357094950,1743726638758,-762.72,0.00018425,2]
[357094951,1743726638767,-536.37,0.00018425,2]
[357094952,1743726638776,-355.39,0.00018426,2]
[357094953,1743726638786,-259.72847351,0.00018427,2]
[357094954,1743726638796,-2800.0,0.0001863,2]
[357094955,1743726638806,-553.8,0.00018698,2]
[357094956,1743726638815,-500.0,0.00018698,2]
[357094957,1743726638825,-544.41,0.00018699,2]
[357094958,1743726638835,-724.26,0.00018699,2]
[357094959,1743726638845,-816.88,0.00018699,2]
[357094960,1743726638855,-762.72,0.00018699,2]
[357094961,1743726638865,-536.37,0.00018699,2]
[357094962,1743726638875,-359.5753439,0.00018712,2]
[357094963,1743726638885,-359.5753439,0.00018712,2]
[357094964,1743726638895,-359.5753439,0.00018712,2]
[357094965,1743726638904,-359.5753439,0.00018712,2]
[357094966,1743726638913,-359.5753439,0.00018712,2]
[357094967,1743726638923,-359.5753439,0.00018712,2]
[357094968,1743726638932,-156.4661923,0.00018712,2]
[357094969,1743726638941,-156.4661923,0.00018712,2]
[357094970,1743726638951,-156.4661923,0.00018712,2]
[357094971,1743726638961,-156.4661923,0.00018712,2]
[357094972,1743726638970,-156.4661923,0.00018712,2]
[357094973,1743726638980,-156.4661923,0.00018712,2]
[357094974,1743726638989,-156.4661923,0.00018712,2]
[357094975,1743726638999,-156.4661923,0.00018712,2]
[357094976,1743726639009,-156.4661923,0.00018712,2]
[357094977,1743726639019,-156.4661923,0.00018712,2]
[357094978,1743726639029,-156.4661923,0.00018712,2]
[357094979,1743726639041,-156.4661923,0.00018712,2]
[357094980,1743726639051,-156.4661923,0.00018712,2]
[357094981,1743726639060,-1178.1089872,0.00018712,2]
[357094982,1743726639070,-178.14045829,0.00018873,2]
[357094983,1743726639079,-165.81342259,0.00018873,2]
[357094984,1743726639091,-553.8,0.00018972,2]
[357094985,1743726639100,-500.0,0.00018972,2]
[357094986,1743726639111,-544.41,0.00018973,2]
[357094987,1743726639121,-724.26,0.00018973,2]
[357094988,1743726639131,-816.88,0.00018973,2]
[357094989,1743726639144,-762.72,0.00018973,2]
[357094990,1743726639154,-536.37,0.00018973,2]
[357094991,1743726639163,-359.5753439,0.00018986,2]
[357094992,1743726639173,-359.5753439,0.00018986,2]
[357094993,1743726639182,-359.5753439,0.00018986,2]
[357094994,1743726639191,-359.5753439,0.00018986,2]
[357094995,1743726639201,-359.5753439,0.00018986,2]
[357094996,1743726639211,-1009.601574,0.000191,2]
[357094997,1743726639332,-4531.79796155,0.00019107,2]
[357094998,1743726639342,-5648.19505438,0.00019136,2]
[357094999,1743726639351,-151.0,0.00019178,2]
[357095000,1743726639361,-3200.0,0.00019178,2]
[357095001,1743726639370,-2200.0,0.00019183,2]
[357095002,1743726639379,-686.383,0.00019183,2]
[357095003,1743726639389,-156.587,0.00019233,2]
[357095004,1743726639399,-553.8,0.00019246,2]
[357095005,1743726639408,-500.0,0.00019246,2]
[357095006,1743726639417,-544.41,0.00019247,2]
[357095007,1743726639427,-724.26,0.00019247,2]
[357095008,1743726639436,-816.88,0.00019247,2]
[357095009,1743726639445,-762.72,0.00019247,2]
[357095010,1743726639454,-536.37,0.00019247,2]
[357095011,1743726639464,-174.38426618,0.00019283,2]
[357095012,1743726639474,-238.10954175,0.00019288,2]
[357095013,1743726639483,-100000.0,0.00019329,2]
[357095014,1743726639494,-553.8,0.0001952,2]
[357095015,1743726639503,-500.0,0.0001952,2]
[357095016,1743726639512,-544.41,0.00019521,2]
[357095017,1743726639521,-724.26,0.00019521,2]
[357095018,1743726639531,-816.88,0.00019521,2]
[357095019,1743726639540,-762.72,0.00019521,2]
[357095020,1743726639549,-536.37,0.00019521,2]
[357095021,1743726639558,-1000.0,0.000196,2]
[357095022,1743726639567,-325.12370104,0.0001961,2]
[357095023,1743726639577,-3600.0,0.00019726,2]
[357095024,1743726639586,-553.8,0.00019794,2]
[357095025,1743726639595,-307.61,0.00019794,2]
[357095026,1743726639604,-544.41,0.00019795,2]
[357095027,1743726639614,-724.26,0.00019795,2]
[357095028,1743726639623,-816.88,0.00019795,2]
[357095029,1743726639632,-762.72,0.00019795,2]
[357095030,1743726639641,-536.37,0.00019795,2]
[357095031,1743726639651,-249.0,0.0002,2]
[357095032,1743726639661,-189.61141663,0.0002,2]
[357095033,1743726639670,-2000.0,0.0002,4]
[357095034,1743726639680,-553.8,0.00020068,2]
[357095035,1743726639690,-544.41,0.00020069,2]
[357095036,1743726639699,-724.26,0.00020069,2]
[357095037,1743726639709,-816.88,0.00020069,2]
[357095038,1743726639718,-762.72,0.00020069,2]
[357095039,1743726639727,-536.37,0.00020069,2]
[357095040,1743726639736,-1000.0,0.000201,2]
[357095041,1743726639745,-4531.79796155,0.00020176,2]
[357095042,1743726639755,-4000.0,0.00020274,2]
[357095043,1743726639764,-553.95,0.00020342,2]
[357095044,1743726639773,-544.47,0.00020343,2]
[357095045,1743726639783,-724.48,0.00020343,2]
[357095046,1743726639792,-817.08389019,0.00020343,2]
[357095047,1743726639801,-762.7352539,0.00020343,2]
[357095048,1743726639810,-536.58,0.00020343,2]
[357095049,1743726639819,-151.24574261,0.00020441,2]
[357095050,1743726639828,-500.0,0.0002049,2]
[357095051,1743726639838,-500.0,0.0002049,2]
[357095052,1743726639848,-500.0,0.0002049,2]
[357095053,1743726639857,-500.0,0.0002049,2]
[357095054,1743726639867,-500.86846009,0.0002049,2]
[357095055,1743726639876,-500.13008703,0.0002049,2]
[357095057,1743726639885,-500.0,0.0002049,2]
[357095058,1743726639894,-500.0,0.0002049,2]
[357095059,1743726639904,-592.79049846,0.0002049,2]
[357095060,1743726639913,-500.0,0.0002049,2]
[357095061,1743726639922,-500.0,0.0002049,2]
[357095062,1743726639931,-164.92560285,0.0002049,2]
[357095063,1743726639940,-500.0,0.0002049,2]
[357095064,1743726639950,-500.0,0.0002049,2]
[357095065,1743726639960,-500.0,0.0002049,2]
[357095066,1743726639969,-607.74252094,0.00020509,2]
[357095067,1743726639979,-500.0,0.00020509,2]
[357095068,1743726639988,-509.8290431,0.00020509,2]
[357095069,1743726639998,-435.07633663,0.00020509,2]
[357095070,1743726640007,-500.0,0.00020509,2]
[357095071,1743726640017,-501.7795802,0.00020509,2]
[357095072,1743726640026,-500.0,0.00020509,2]
[357095073,1743726640039,-500.0,0.00020509,2]
[357095074,1743726640049,-543.05057501,0.00020509,2]
[357095075,1743726640059,-500.11501824,0.00020509,2]
[357095076,1743726640068,-500.0,0.00020509,2]
[357095077,1743726640078,-500.0,0.00020509,2]
[357095078,1743726640088,-500.0,0.00020509,2]
[357095079,1743726640098,-500.88238115,0.00020509,2]
[357095081,1743726640108,-500.0,0.00020509,2]
[357095083,1743726640117,-551.7220094,0.00020509,2]
[357095085,1743726640127,-500.0,0.00020509,2]
[357095086,1743726640138,-500.0,0.00020509,2]
[357095088,1743726640148,-614.55341697,0.00020509,2]
[357095090,1743726640157,-500.98790136,0.00020509,2]
[357095092,1743726640166,-500.0,0.00020509,2]
[357095094,1743726640175,-602.19380571,0.00020509,2]
[357095096,1743726640186,-301.20596459,0.00020509,2]
[357095098,1743726640195,-1000.0,0.00020514,2]
[357095100,1743726640205,-1000.0,0.00020514,2]
[357095102,1743726640216,-882.02427723,0.00020514,2]
[357095162,1743726641092,-372.11075358,0.00014863,2]
[357095176,1743726641228,-532.58,0.00014042,2]
[357095178,1743726641237,-450.21729437,0.00014863,2]
[357095252,1743726646272,-1824.96688243,0.00014863,2]
[357095253,1743726646383,-20215.70506962,0.00014863,2]
[357095254,1743726646393,-22863.0,0.00015137,2]
[357095255,1743726646403,-22863.0,0.00015411,2]
[357095256,1743726646413,-22863.0,0.00015685,2]
[357095257,1743726646423,-22863.0,0.00015959,2]
[357095258,1743726646432,-22863.0,0.00016233,2]
[357095259,1743726646442,-22863.0,0.00016507,2]
[357095260,1743726646451,-22863.0,0.00016781,2]
[357095261,1743726646460,-22863.0,0.00017055,2]
[357095262,1743726646470,-22863.0,0.00017329,2]
[357095263,1743726646480,-22863.0,0.00017603,2]
[357095264,1743726646489,-22863.0,0.00017877,2]
[357095265,1743726646499,-22863.0,0.00018151,2]
[357095266,1743726646508,-22863.0,0.00018425,2]
[357095267,1743726646518,-22863.0,0.00018699,2]
[357095268,1743726646527,-22863.0,0.00018973,2]
[357095269,1743726646537,-22863.0,0.00019247,2]
[357095270,1743726646546,-2200.0,0.00019414,2]
[357095271,1743726646556,-22863.0,0.00019521,2]
[357095272,1743726646565,-15531.45850261,0.00019795,2]
[357095276,1743727040756,623.90921099,0.00014038,3]
[357095384,1743727845320,-160.0,0.00016404,2]
[357095385,1743727845330,-189.84567996,0.00016519,2]
[357095386,1743727845340,-532.626292,0.00016619,2]
[357095387,1743727845349,-419.04650234,0.00017173,2]
[357095388,1743727845365,-300.0,0.00017198,2]
[357095389,1743727845379,-163.72196928,0.00017198,2]
[357095390,1743727845388,-213.69029806,0.00017199,2]
[357095391,1743727845398,-500.0,0.00017199,2]
[357095392,1743727845407,-595.39,0.00017199,2]
[357095393,1743727845417,-2075.67925836,0.00017199,2]
[357095400,1743727846301,-135.05074164,0.00017199,2]
[357095401,1743727846311,-189.84567996,0.00017384,2]
[357095402,1743727846321,-500.0,0.00017473,2]
[357095403,1743727846331,-2210.73,0.00017473,2]
[357095404,1743727846341,-500.0,0.00017747,2]
[357095405,1743727846351,-2210.73,0.00017747,2]
[357095406,1743727846361,-160.0,0.00017851,2]
[357095407,1743727846372,-500.0,0.00018021,2]
[357095408,1743727846382,-2210.73,0.00018021,2]
[357095409,1743727846393,-189.84567996,0.00018249,2]
[357095410,1743727846403,-500.0,0.00018295,2]
[357095411,1743727846413,-2210.73,0.00018295,2]
[357095412,1743727846423,-314.0,0.00018349,2]
[357095413,1743727846434,-500.0,0.00018569,2]
[357095414,1743727846443,-2210.73,0.00018569,2]
[357095415,1743727846453,-420.0,0.0001878,2]
[357095416,1743727846463,-500.0,0.00018843,2]
[357095417,1743727846472,-2210.73,0.00018843,2]
[357095419,1743727846481,-3926.40267767,0.000189,2]
[357095422,1743727846495,-2210.73,0.00019117,2]
[357095424,1743727846504,-899.85112828,0.00019391,2]
[357095426,1743727846516,-1310.87887172,0.00019391,2]
[357095428,1743727846527,-2200.0,0.00019429,2]
[357095430,1743727846536,-2210.73,0.00019665,2]
[357095432,1743727846546,-1194.8542458,0.00019695,2]
[357095434,1743727846556,-3023.76978728,0.00019866,2]
[357095435,1743727846567,-826.44522873,0.00019866,2]
[357095436,1743727846581,-76.18766138,0.00019866,2]
[357095437,1743727846590,-252.48,0.00019899,2]
[357095438,1743727846600,-500.0,0.00019899,2]
[357095439,1743727846609,-2210.73,0.00019939,2]
[357095440,1743727846619,-5182.32012062,0.0001999,2]
[357095441,1743727846630,-15531.6873376,0.0001999,2]
[357095529,1743729043554,-0.37414462,0.0001833,2]
[357095530,1743729043568,-159.62585538,0.0001833,2]
[357095531,1743729043579,-419.04650234,0.00018503,2]
[357095532,1743729043591,-105.60522696,0.00018761,2]
[357095559,1743729046587,-401.0,0.00018349,2]
[357095560,1743729046598,-160.70791904,0.00018761,2]
[357095561,1743729046608,-1262.17113342,0.00019,2]
[357095562,1743729046618,-3000.0,0.000198,2]
[357095563,1743729046627,-3469.86041,0.0001981,2]
[357095564,1743729046637,-300.0,0.00019888,2]
[357095565,1743729046647,-500.0,0.00019899,2]
[357095566,1743729046656,-500.0,0.00019899,2]
[357095567,1743729046666,-3699.62581211,0.000199,2]
[357095568,1743729046675,-500.0,0.00019988,2]
[357095569,1743729046684,-500.0,0.00019988,2]
[357095570,1743729046694,-500.0,0.00019988,2]
[357095571,1743729046704,-9040.44533516,0.00019988,3]
[357095572,1743729046712,-2600.80704751,0.00019988,3]
[357095573,1743729046724,-1337.380915,0.00019988,3]
[357095577,1743729996120,-270.0,0.00018478,2]
[357095582,1743730219788,181.91,0.000249,31]
[357095637,1743730232719,-6075.52104372,0.00016453,2]
[357095639,1743730232729,-5000.0,0.00016453,2]
[357095641,1743730232739,-5000.0,0.00016453,2]
[357095642,1743730232750,-5000.0,0.00016453,2]
[357095643,1743730232760,-150.18247643,0.000169,2]
[357095644,1743730232772,-266.3131475,0.00018327,2]
[357095645,1743730232796,-131.0,0.00018478,2]
[357095646,1743730232812,-419.04650234,0.00018947,2]
[357095647,1743730232825,-2584.28928604,0.00019226,2]
[357095648,1743730232838,-300.0,0.00019324,2]
[357095649,1743730232850,-429.68365556,0.00019325,2]
[357095650,1743730232860,-500.0,0.00019325,2]
[357095651,1743730232872,-500.0,0.00019325,2]
[357095652,1743730232885,-500.0,0.00019325,2]
[357095653,1743730232895,-500.0,0.00019325,2]
[357095654,1743730232908,-155.37495359,0.00019325,2]
[357095655,1743730232918,-500.0,0.00019325,2]
[357095656,1743730232929,-500.0,0.00019325,2]
[357095657,1743730232943,-500.0,0.00019325,2]
[357095658,1743730232954,-500.0,0.00019325,2]
[357095659,1743730232964,-500.0,0.00019325,2]
[357095660,1743730232975,-500.0,0.00019325,2]
[357095661,1743730232984,-500.0,0.00019325,2]
[357095662,1743730232995,-848.21,0.00019325,2]
[357095663,1743730233005,-500.0,0.00019325,2]
[357095664,1743730233018,-500.0,0.00019325,2]
[357095665,1743730233028,-500.0,0.00019325,2]
[357095666,1743730233039,-4520.22266758,0.00019325,3]
[357095667,1743730233053,-2905.79628597,0.00019325,3]
[357095668,1743730233066,-339.28296187,0.00019325,3]
[357095669,1743730233079,-6949.93376568,0.00019325,3]
[357095743,1743730246798,-500.0,0.00019325,2]
[357095745,1743730246810,-500.0,0.00019325,2]
[357095746,1743730246821,-500.0,0.00019325,2]
[357095747,1743730246832,-2200.0,0.00019325,2]
[357095748,1743730246844,-251.15225804,0.00019325,2]
[357095749,1743730246855,-6593.35907747,0.00019325,3]
[357095750,1743730246869,-5959.44533294,0.00019325,3]
[357095751,1743730247059,-13506.48245793,0.00019325,3]
[357095752,1743730247083,-12781.55319896,0.00019325,3]
[357095753,1743730247093,-2411.27984485,0.00019326,2]
[357095754,1743730247105,-4155.5,0.00019326,2]
[357095755,1743730386805,5957.3,0.00025,120]
[357095782,1743731431729,-288.80881107,0.00018597,2]
[357095784,1743731431739,-509.0,0.00019,2]
[357095786,1743731431749,-2095.24598886,0.00019129,2]
[357095864,1743731437658,-172.09987112,0.00019129,2]
[357095865,1743731437668,-191.15274792,0.00019173,2]
[357095866,1743731437679,-259.69,0.00019219,3]
[357095867,1743731437690,-300.0,0.00019227,2]
[357095868,1743731437702,-341.86682426,0.00019228,2]
[357095869,1743731437712,-226.24073668,0.00019228,2]
[357095870,1743731437742,-388.32560934,0.00019228,2]
[357095871,1743731437752,-500.0,0.00019228,2]
[357095872,1743731437761,-996.59,0.00019228,2]
[357095873,1743731437773,-500.0,0.00019228,2]
[357095874,1743731437782,-240.14981886,0.00019228,2]
[357095875,1743731437791,-500.0,0.00019228,2]
[357095876,1743731437802,-280.95673814,0.00019228,2]
[357095877,1743731437811,-4583.62,0.00019228,2]
[357095878,1743731437825,-380.80517504,0.00019228,2]
[357095879,1743731437834,-500.0,0.00019228,2]
[357095880,1743731437844,-158.20707082,0.00019228,2]
[357095893,1743731445841,-401.0,0.00018551,2]
[357095894,1743731445850,-341.79292918,0.00019228,2]
[357095895,1743731445859,-362.8754852,0.00019228,2]
[357095896,1743731445868,-300.79255645,0.00019228,2]
[357095897,1743731445878,-247.62924113,0.00019228,2]
[357095898,1743731445887,-196.20505855,0.00019228,2]
[357095899,1743731445923,-303.79494145,0.00019228,2]
[357095900,1743731445933,-175.40676747,0.00019228,2]
[357095901,1743731445942,-500.0,0.00019228,2]
[357095902,1743731445951,-500.0,0.00019228,2]
[357095903,1743731445961,-18.04968452,0.00019228,2]
[357095904,1743731637959,1007.81,0.00025,30]
[357095920,1743732545128,-173.00824965,0.00013699,2]
[357095952,1743732632016,-9.17561355,0.00013699,2]
[357095954,1743732632026,-300.0,0.0001855,2]
[357095956,1743732632036,-2281.945,0.00018551,2]
[357095958,1743732632045,-1551.0,0.00018551,2]
[357095960,1743732632055,-781.25,0.00018587,2]
[357095962,1743732632064,-418.75886239,0.00018629,2]
[357095964,1743732632074,-920.0,0.00019,2]
[357095966,1743732632086,-212.931284,0.00019,2]
[357095968,1743732632097,-213.0974827,0.00019,2]
[357095970,1743732632106,-213.0974827,0.00019,2]
[357095972,1743732632116,-213.0974827,0.00019,2]
[357095974,1743732632128,-1983.9276275,0.00019028,2]
[357095976,1743732632137,-1860.73635381,0.000191,2]
[357095978,1743732632147,-213.0974827,0.000191,2]
[357095980,1743732632156,-213.0974827,0.000191,2]
[357095982,1743732632166,-213.0974827,0.000191,2]
[357095984,1743732632176,-213.0974827,0.000191,2]
[357095986,1743732632186,-2386.50854637,0.00019127,3]
[357095988,1743732632195,-25677.99336818,0.00019127,3]
[357095990,1743732632205,-6355.04,0.00019127,2]
[357095992,1743732632214,-389.80308614,0.00019127,2]
[357095993,1743732632223,-507.26757812,0.00019127,2]
[357095995,1743732632233,-500.0,0.00019127,2]
[357095997,1743732632242,-500.0,0.00019127,2]
[357095998,1743732632252,-506.14466756,0.00019127,2]
[357095999,1743732632262,-500.0,0.00019127,2]
[357096000,1743732632271,-500.0,0.00019128,2]
[357096001,1743732632282,-500.0,0.00019128,2]
[357096002,1743732632292,-500.0,0.00019128,2]
[357096003,1743732632302,-293.27905506,0.00019128,2]
[357096004,1743732632312,-500.0,0.00019128,2]
[357096005,1743732632321,-500.0,0.00019128,2]
[357096006,1743732632331,-572.00363182,0.00019128,2]
[357096007,1743732632340,-500.0,0.00019128,2]
[357096008,1743732632349,-151.0,0.00019128,2]
[357096009,1743732632359,-252.42279469,0.00019128,2]
[357096010,1743732632368,-500.0,0.00019128,2]
[357096011,1743732632377,-408.05777878,0.00019128,2]
[357096012,1743732632386,-151.0,0.00019128,2]
[357096013,1743732632396,-2018.56455,0.00019128,2]
[357096014,1743732632405,-500.0,0.00019128,2]
[357096015,1743732632415,-2018.56455,0.00019128,2]
[357096016,1743732632424,-162.12028626,0.00019128,2]
[357096017,1743732632434,-500.0,0.00019128,2]
[357096018,1743732632443,-500.0,0.00019128,2]
[357096019,1743732632453,-229.86826376,0.00019128,2]
[357096020,1743732632462,-347.05289939,0.00019128,2]
[357096021,1743732632472,-500.0,0.00019128,2]
[357096022,1743732632481,-500.0,0.00019128,2]
[357096023,1743732632490,-500.0,0.00019128,2]
[357096024,1743732632499,-526.45373464,0.00019128,2]
[357096025,1743732632509,-500.0,0.00019128,2]
[357096026,1743732632518,-541.72625841,0.00019129,2]
[357096027,1743732632529,-562.15758716,0.00019129,2]
[357096028,1743732632539,-514.95105931,0.00019129,2]
[357096029,1743732632548,-151.0,0.00019129,2]
[357096030,1743732632558,-151.0,0.00019129,2]
[357096031,1743732632568,-151.0,0.00019129,2]
[357096032,1743732632577,-151.0,0.00019129,2]
[357096033,1743732632587,-151.0,0.00019129,2]
[357096034,1743732632596,-221.871292,0.00019129,2]
[357096035,1743732632605,-500.0,0.00019129,2]
[357096036,1743732632615,-243.89310516,0.00019129,2]
[357096037,1743732632624,-2918.42,0.00019129,2]
[357096038,1743732632634,-4392.64,0.00019129,2]
[357096039,1743732632643,-500.0,0.00019129,2]
[357096040,1743732632653,-290.154442,0.00019129,2]
[357096041,1743732632663,-151.0,0.00019129,2]
[357096042,1743732632673,-258.799744,0.00019129,2]
[357096043,1743732632682,-500.0,0.00019129,2]
[357096044,1743732632692,-2018.56455,0.00019129,2]
[357096045,1743732632702,-2018.56455,0.00019129,2]
[357096046,1743732632712,-2018.56455,0.00019129,2]
[357096047,1743732632722,-2018.56455,0.00019129,2]
[357096048,1743732632731,-2018.56455,0.00019129,2]
[357096049,1743732632741,-2018.56455,0.00019129,2]
[357096050,1743732632750,-2018.56455,0.00019129,2]
[357096051,1743732632760,-2018.56455,0.00019129,2]
[357096052,1743732632770,-370000.0,0.00019129,2]
[357096053,1743732632781,-500.0,0.00019173,2]
[357096054,1743732632792,-500.0,0.00019173,2]
[357096055,1743732632802,-506.33168452,0.00019173,2]
[357096056,1743732632812,-502.05351045,0.00019173,2]
[357096057,1743732632822,-500.0,0.00019173,2]
[357096058,1743732632831,-500.0,0.00019173,2]
[357096059,1743732632841,-500.0,0.00019173,2]
[357096060,1743732632850,-500.0,0.00019173,2]
[357096061,1743732632860,-500.0,0.00019173,2]
[357096062,1743732632869,-501.17198203,0.00019173,2]
[357096063,1743732632879,-500.0,0.00019173,2]
[357096064,1743732632889,-500.72479361,0.00019173,2]
[357096065,1743732632898,-500.0,0.000192,3]
[357096066,1743732632908,-151.0,0.00019227,2]
[357096067,1743732632917,-151.0,0.00019227,2]
[357096068,1743732632926,-151.0,0.00019227,2]
[357096069,1743732632936,-500.0,0.00019228,2]
[357096070,1743732632945,-831.63,0.00019228,2]
[357096071,1743732632955,-151.0,0.00019228,2]
[357096072,1743732632965,-153.493637,0.00019228,2]
[357096073,1743732632975,-151.0,0.00019228,2]
[357096074,1743732632984,-151.619642,0.00019228,2]
[357096075,1743732632994,-151.0,0.00019228,2]
[357096076,1743732633003,-151.0,0.00019228,2]
[357096077,1743732633012,-2018.56455,0.00019228,2]
[357096078,1743732633022,-2018.56455,0.00019228,2]
[357096079,1743732633032,-1622.01636648,0.00019228,2]
[357096080,1743732633046,-396.54818352,0.00019228,2]
[357096081,1743732633057,-1303.45181648,0.00019228,2]
[357096086,1743732637876,-401.0,0.00018034,2]
[357096087,1743732637886,-99.0,0.00018338,2]
[357096099,1743732640194,-160.79384423,0.00018338,2]
[357096100,1743732640204,-359.12265537,0.00019029,2]
[357096101,1743732640216,-361.000005,0.00019029,2]
[357096125,1743732646218,-1795.11557334,0.00019029,2]
[357096128,1743733005706,150.0,0.00025,120]
[357096132,1743733597141,-270.0,0.00017907,2]